fUST/lending_fUST_20260506
["ID","MTS","AMOUNT","RATE_DAILY","PERIOD"]
[421735743,1778082632000,-500.0,0.00010953,2]
[421735755,1778082632000,-500.0,0.00010953,2]
[421735744,1778082632000,-500.0,0.00010953,2]
[421735751,1778082632000,-500.0,0.00010953,2]
[421735754,1778082632000,-500.0,0.00010953,2]
[421735752,1778082632000,-500.0,0.00010953,2]
[421735750,1778082632000,-500.0,0.00010953,2]
[421735748,1778082632000,-500.0,0.00010953,2]
[421735758,1778082632000,-500.0,0.00010953,2]
[421735749,1778082632000,-500.0,0.00010953,2]
[421735757,1778082632000,-500.0,0.00010953,2]
[421735753,1778082632000,-500.0,0.00010953,2]
[421735747,1778082632000,-500.0,0.00010953,2]
[421735756,1778082632000,-631.03100116,0.00010953,2]
[421735811,1778082633000,-500.0,0.00010958,2]
[421735818,1778082633000,-2145.7,0.00010958,2]
[421735809,1778082633000,-928.28,0.00010958,2]
[421735812,1778082633000,-500.0,0.00010958,2]
[421735816,1778082633000,-1575.54,0.00010958,2]
[421735819,1778082633000,-2950.32,0.00010958,2]
[421735813,1778082633000,-500.0,0.00010958,2]
[421735814,1778082633000,-734.79,0.00010958,2]
[421735835,1778082633000,-572.8,0.00010958,2]
[421735834,1778082633000,-500.0,0.00010958,2]
[421735833,1778082633000,-500.0,0.00010958,2]
[421735823,1778082633000,-3067.69,0.00010958,2]
[421735822,1778082633000,-500.0,0.00010958,2]
[421735824,1778082633000,-800.73,0.00010958,2]
[421735828,1778082633000,-500.0,0.00010958,2]
[421735825,1778082633000,-500.0,0.00010958,2]
[421735821,1778082633000,-741.62,0.00010958,2]
[421735817,1778082633000,-507.21891014,0.00010958,2]
[421735820,1778082633000,-500.0,0.00010958,2]
[421735791,1778082633000,-500.0,0.00010958,2]
[421735802,1778082633000,-500.0,0.00010958,2]
[421735832,1778082633000,-1014.29,0.00010958,2]
[421735792,1778082633000,-500.0,0.00010958,2]
[421735793,1778082633000,-500.0,0.00010958,2]
[421735794,1778082633000,-500.0,0.00010958,2]
[421735795,1778082633000,-884.2,0.00010958,2]
[421735796,1778082633000,-500.0,0.00010958,2]
[421735798,1778082633000,-500.0,0.00010958,2]
[421735799,1778082633000,-500.0,0.00010958,2]
[421735804,1778082633000,-500.0,0.00010958,2]
[421735801,1778082633000,-500.0,0.00010958,2]
[421735797,1778082633000,-500.0,0.00010958,2]
[421735807,1778082633000,-835.86,0.00010958,2]
[421735806,1778082633000,-576.09,0.00010958,2]
[421735803,1778082633000,-500.0,0.00010958,2]
[421735800,1778082633000,-500.0,0.00010958,2]
[421735805,1778082633000,-500.0,0.00010958,2]
[421735808,1778082633000,-776.1,0.00010958,2]
[421735810,1778082633000,-500.0,0.00010958,2]
[421735826,1778082633000,-1077.61,0.00010958,2]
[421735815,1778082633000,-500.0,0.00010958,2]
[421735831,1778082633000,-500.0,0.00010958,2]
[421735853,1778082633000,-1363.48,0.00010958,2]
[421735851,1778082633000,-15016.37,0.00010958,2]
[421735852,1778082633000,-627.4576835,0.00010958,2]
[421735858,1778082633000,-1150.62,0.00010958,2]
[421735854,1778082633000,-500.0,0.00010958,2]
[421735849,1778082633000,-613.1,0.00010958,2]
[421735856,1778082633000,-919.28,0.00010958,2]
[421735863,1778082633000,-500.0,0.00010958,2]
[421735855,1778082633000,-1594.25,0.00010958,2]
[421735873,1778082633000,-21.92679798,0.00010958,2]
[421735864,1778082633000,-740.88,0.00010958,2]
[421735867,1778082633000,-3404.47,0.00010958,2]
[421735865,1778082633000,-570.37,0.00010958,2]
[421735870,1778082633000,-3790.81,0.00010958,2]
[421735866,1778082633000,-843.63,0.00010958,2]
[421735868,1778082633000,-500.0,0.00010958,2]
[421735871,1778082633000,-1206.42987776,0.00010958,2]
[421735872,1778082633000,-586.32012224,0.00010958,2]
[421735862,1778082633000,-1383.64,0.00010958,2]
[421735857,1778082633000,-3031.73,0.00010958,2]
[421735827,1778082633000,-606.23,0.00010958,2]
[421735859,1778082633000,-694.22,0.00010958,2]
[421735850,1778082633000,-500.0,0.00010958,2]
[421735829,1778082633000,-905.65,0.00010958,2]
[421735830,1778082633000,-500.0,0.00010958,2]
[421735836,1778082633000,-973.66,0.00010958,2]
[421735838,1778082633000,-2049.64,0.00010958,2]
[421735837,1778082633000,-500.0,0.00010958,2]
[421735847,1778082633000,-714.55,0.00010958,2]
[421735848,1778082633000,-500.0,0.00010958,2]
[421735839,1778082633000,-500.0,0.00010958,2]
[421735840,1778082633000,-777.03,0.00010958,2]
[421735869,1778082633000,-500.0,0.00010958,2]
[421735842,1778082633000,-879.58,0.00010958,2]
[421735860,1778082633000,-500.0,0.00010958,2]
[421735843,1778082633000,-500.0,0.00010958,2]
[421735844,1778082633000,-2547.53,0.00010958,2]
[421735845,1778082633000,-500.0,0.00010958,2]
[421735846,1778082633000,-2836.47,0.00010958,2]
[421735861,1778082633000,-500.0,0.00010958,2]
[421735841,1778082633000,-998.2,0.00010958,2]
[421735917,1778082638000,-163.60367011,0.00011098,2]
[421735919,1778082638000,-831.51979763,0.00011147,2]
[421735913,1778082638000,-650.845,0.00011089,2]
[421735910,1778082638000,-557.5788265,0.00011035,2]
[421735914,1778082638000,-486.092,0.00011089,2]
[421735920,1778082638000,-862.28603014,0.00011202,2]
[421735915,1778082638000,-801.85129955,0.00011092,2]
[421735916,1778082638000,-155.0,0.00011094,2]
[421735923,1778082638000,-1167.0466,0.00011232,2]
[421735921,1778082638000,-155.0,0.00011231,2]
[421735932,1778082638000,-500.0,0.00011232,2]
[421735925,1778082638000,-500.0,0.00011232,2]
[421735924,1778082638000,-500.0,0.00011232,2]
[421735922,1778082638000,-250.0,0.00011231,2]
[421735933,1778082638000,-500.0,0.00011232,2]
[421735930,1778082638000,-500.0,0.00011232,2]
[421735912,1778082638000,-1414.362,0.00011089,2]
[421735918,1778082638000,-414.311,0.00011114,2]
[421735909,1778082638000,-461.67526834,0.00011035,2]
[421735900,1778082638000,-500.0,0.00010958,2]
[421735904,1778082638000,-745.65223616,0.00010982,2]
[421735931,1778082638000,-500.0,0.00011232,2]
[421735890,1778082638000,-601.23209739,8.415e-05,2]
[421735891,1778082638000,-152.0,0.00010243,2]
[421735892,1778082638000,-992.67320202,0.00010958,2]
[421735893,1778082638000,-500.0,0.00010958,2]
[421735894,1778082638000,-750.5,0.00010958,2]
[421735897,1778082638000,-500.0,0.00010958,2]
[421735895,1778082638000,-500.0,0.00010958,2]
[421735911,1778082638000,-773.2413689,0.00011037,2]
[421735896,1778082638000,-500.0,0.00010958,2]
[421735898,1778082638000,-1784.48,0.00010958,2]
[421735902,1778082638000,-387.9032627,0.00010958,2]
[421735901,1778082638000,-500.0,0.00010958,2]
[421735907,1778082638000,-500.0,0.00011006,2]
[421735905,1778082638000,-500.0,0.0001099,2]
[421735908,1778082638000,-174.73012077,0.00011035,2]
[421735906,1778082638000,-250.0,0.00011,2]
[421735903,1778082638000,-580.97,0.00010958,2]
[421735899,1778082638000,-968.53,0.00010958,2]
[421735926,1778082638000,-500.0,0.00011232,2]
[421735934,1778082638000,-500.0,0.00011232,2]
[421735928,1778082638000,-500.0,0.00011232,2]
[421735953,1778082638000,-835.86,0.00011232,2]
[421735957,1778082638000,-500.0,0.00011232,2]
[421735955,1778082638000,-928.28,0.00011232,2]
[421735956,1778082638000,-500.0,0.00011232,2]
[421735960,1778082638000,-2145.7,0.00011232,2]
[421735962,1778082638000,-500.0,0.00011232,2]
[421735963,1778082638000,-741.62,0.00011232,2]
[421735964,1778082638000,-500.0,0.00011232,2]
[421735965,1778082638000,-3067.69,0.00011232,2]
[421735961,1778082638000,-2950.32,0.00011232,2]
[421735971,1778082638000,-500.0,0.00011232,2]
[421735974,1778082638000,-500.0,0.00011232,2]
[421735972,1778082638000,-1014.29,0.00011232,2]
[421735966,1778082638000,-800.73,0.00011232,2]
[421735967,1778082638000,-500.0,0.00011232,2]
[421735970,1778082638000,-905.65,0.00011232,2]
[421735968,1778082638000,-1077.61,0.00011232,2]
[421735973,1778082638000,-500.0,0.00011232,2]
[421735929,1778082638000,-500.0,0.00011232,2]
[421735950,1778082638000,-500.0,0.00011232,2]
[421735951,1778082638000,-500.0,0.00011232,2]
[421735969,1778082638000,-500.0,0.00011232,2]
[421735959,1778082638000,-734.79,0.00011232,2]
[421735927,1778082638000,-500.0,0.00011232,2]
[421735948,1778082638000,-500.0,0.00011232,2]
[421735935,1778082638000,-500.0,0.00011232,2]
[421735937,1778082638000,-288.10707892,0.00011232,2]
[421735946,1778082638000,-500.0,0.00011232,2]
[421735938,1778082638000,-500.0,0.00011232,2]
[421735939,1778082638000,-500.0,0.00011232,2]
[421735947,1778082638000,-500.0,0.00011232,2]
[421735942,1778082638000,-500.0,0.00011232,2]
[421735936,1778082638000,-1145.43,0.00011232,2]
[421735940,1778082638000,-500.0,0.00011232,2]
[421735943,1778082638000,-500.0,0.00011232,2]
[421735944,1778082638000,-500.0,0.00011232,2]
[421735945,1778082638000,-500.0,0.00011232,2]
[421735949,1778082638000,-500.0,0.00011232,2]
[421735958,1778082638000,-500.0,0.00011232,2]
[421735954,1778082638000,-776.1,0.00011232,2]
[421735941,1778082638000,-884.2,0.00011232,2]
[421735952,1778082638000,-576.09,0.00011232,2]
[421736005,1778082639000,-843.63,0.00011232,2]
[421736016,1778082639000,-968.53,0.00011232,2]
[421736015,1778082639000,-1784.48,0.00011232,2]
[421736013,1778082639000,-500.0,0.00011232,2]
[421736024,1778082639000,-927.27566595,0.00011312,2]
[421736009,1778082639000,-1792.75,0.00011232,2]
[421736006,1778082639000,-3404.47,0.00011232,2]
[421736010,1778082639000,-1014.6,0.00011232,2]
[421736007,1778082639000,-500.0,0.00011232,2]
[421736008,1778082639000,-3790.81,0.00011232,2]
[421736017,1778082639000,-500.0,0.00011232,2]
[421736014,1778082639000,-500.0,0.00011232,2]
[421736020,1778082639000,-500.0,0.0001128,2]
[421736037,1778082639000,-500.0,0.00011506,2]
[421736018,1778082639000,-500.0,0.00011232,2]
[421736019,1778082639000,-894.19061326,0.00011257,2]
[421736021,1778082639000,-163.60367011,0.00011281,2]
[421736022,1778082639000,-150.337,0.00011284,2]
[421736026,1778082639000,-160.0,0.00011314,2]
[421736036,1778082639000,-1167.0466,0.00011506,2]
[421736025,1778082639000,-160.0,0.00011314,2]
[421736030,1778082639000,-961.58486559,0.00011367,2]
[421736029,1778082639000,-160.0,0.00011314,2]
[421736033,1778082639000,-997.16350561,0.00011422,2]
[421736031,1778082639000,-155.0,0.00011368,2]
[421736027,1778082639000,-161.57016804,0.00011314,2]
[421736035,1778082639000,-155.0,0.00011505,2]
[421736023,1778082639000,-793.0,0.000113,2]
[421736003,1778082639000,-740.88,0.00011232,2]
[421735978,1778082639000,-2049.64,0.00011232,2]
[421736004,1778082639000,-570.37,0.00011232,2]
[421736028,1778082639000,-160.0,0.00011314,2]
[421735983,1778082639000,-500.0,0.00011232,2]
[421735984,1778082639000,-2547.53,0.00011232,2]
[421735976,1778082639000,-973.66,0.00011232,2]
[421735981,1778082639000,-998.2,0.00011232,2]
[421735977,1778082639000,-314.4340479,0.00011232,2]
[421735975,1778082639000,-572.8,0.00011232,2]
[421735982,1778082639000,-879.58,0.00011232,2]
[421735985,1778082639000,-500.0,0.00011232,2]
[421735979,1778082639000,-500.0,0.00011232,2]
[421735980,1778082639000,-777.03,0.00011232,2]
[421735986,1778082639000,-2836.47,0.00011232,2]
[421735987,1778082639000,-714.55,0.00011232,2]
[421736011,1778082639000,-500.0,0.00011232,2]
[421735989,1778082639000,-613.1,0.00011232,2]
[421735990,1778082639000,-500.0,0.00011232,2]
[421735998,1778082639000,-694.22,0.00011232,2]
[421735994,1778082639000,-1594.25,0.00011232,2]
[421735991,1778082639000,-15016.37,0.00011232,2]
[421735992,1778082639000,-1363.48,0.00011232,2]
[421735997,1778082639000,-1150.62,0.00011232,2]
[421735995,1778082639000,-919.28,0.00011232,2]
[421735996,1778082639000,-3031.73,0.00011232,2]
[421735993,1778082639000,-500.0,0.00011232,2]
[421735999,1778082639000,-500.0,0.00011232,2]
[421736012,1778082639000,-750.5,0.00011232,2]
[421736000,1778082639000,-500.0,0.00011232,2]
[421736001,1778082639000,-1383.64,0.00011232,2]
[421735988,1778082639000,-500.0,0.00011232,2]
[421736032,1778082639000,-244.0,0.00011369,2]
[421736002,1778082639000,-500.0,0.00011232,2]
[421736040,1778082639000,-500.0,0.00011506,2]
[421736084,1778082639000,-2950.32,0.00011506,2]
[421736088,1778082639000,-741.62,0.00011506,2]
[421736091,1778082639000,-500.0,0.00011506,2]
[421736093,1778082639000,-3067.69,0.00011506,2]
[421736095,1778082639000,-800.73,0.00011506,2]
[421736097,1778082639000,-500.0,0.00011506,2]
[421736099,1778082639000,-1077.61,0.00011506,2]
[421736101,1778082639000,-500.0,0.00011506,2]
[421736107,1778082639000,-1014.29,0.00011506,2]
[421736105,1778082639000,-500.0,0.00011506,2]
[421736103,1778082639000,-905.65,0.00011506,2]
[421736109,1778082639000,-500.0,0.00011506,2]
[421736115,1778082639000,-973.66,0.00011506,2]
[421736082,1778082639000,-2145.7,0.00011506,2]
[421736113,1778082639000,-572.8,0.00011506,2]
[421736131,1778082639000,-500.0,0.00011506,2]
[421736129,1778082639000,-2547.53,0.00011506,2]
[421736127,1778082639000,-500.0,0.00011506,2]
[421736125,1778082639000,-879.58,0.00011506,2]
[421736121,1778082639000,-777.03,0.00011506,2]
[421736119,1778082639000,-500.0,0.00011506,2]
[421736123,1778082639000,-998.2,0.00011506,2]
[421736133,1778082639000,-2836.47,0.00011506,2]
[421736135,1778082639000,-714.55,0.00011506,2]
[421736137,1778082639000,-500.0,0.00011506,2]
[421736139,1778082639000,-613.1,0.00011506,2]
[421736140,1778082639000,-500.0,0.00011506,2]
[421736034,1778082639000,-163.60367011,0.00011464,2]
[421736117,1778082639000,-2049.64,0.00011506,2]
[421736086,1778082639000,-500.0,0.00011506,2]
[421736111,1778082639000,-500.0,0.00011506,2]
[421736080,1778082639000,-734.79,0.00011506,2]
[421736077,1778082639000,-500.0,0.00011506,2]
[421736049,1778082639000,-500.0,0.00011506,2]
[421736042,1778082639000,-500.0,0.00011506,2]
[421736045,1778082639000,-500.0,0.00011506,2]
[421736041,1778082639000,-500.0,0.00011506,2]
[421736050,1778082639000,-500.0,0.00011506,2]
[421736038,1778082639000,-294.4383355,0.00011506,2]
[421736044,1778082639000,-500.0,0.00011506,2]
[421736039,1778082639000,-500.0,0.00011506,2]
[421736051,1778082639000,-500.0,0.00011506,2]
[421736047,1778082639000,-500.0,0.00011506,2]
[421736046,1778082639000,-500.0,0.00011506,2]
[421736048,1778082639000,-1145.43,0.00011506,2]
[421736053,1778082639000,-500.0,0.00011506,2]
[421736043,1778082639000,-500.0,0.00011506,2]
[421736066,1778082639000,-776.1,0.00011506,2]
[421736064,1778082639000,-835.86,0.00011506,2]
[421736068,1778082639000,-928.28,0.00011506,2]
[421736058,1778082639000,-343.55813815,0.00011506,2]
[421736059,1778082639000,-500.0,0.00011506,2]
[421736060,1778082639000,-500.0,0.00011506,2]
[421736057,1778082639000,-500.0,0.00011506,2]
[421736070,1778082639000,-500.0,0.00011506,2]
[421736061,1778082639000,-500.0,0.00011506,2]
[421736052,1778082639000,-884.2,0.00011506,2]
[421736056,1778082639000,-500.0,0.00011506,2]
[421736055,1778082639000,-500.0,0.00011506,2]
[421736054,1778082639000,-500.0,0.00011506,2]
[421736062,1778082639000,-576.09,0.00011506,2]
[421736194,1778082640000,-30018.82902975,0.000117,2]
[421736191,1778082640000,-7202.46922303,0.00011586,2]
[421736186,1778082640000,-22390.865991,0.00011564,2]
[421736183,1778082640000,-500.0,0.00011554,2]
[421736188,1778082640000,-36316.72246319,0.00011564,2]
[421736185,1778082640000,-11275.432995,0.00011564,2]
[421736189,1778082640000,-478.75725327,0.00011583,2]
[421736181,1778082640000,-151.0,0.0001155,2]
[421736187,1778082640000,-3626.01854681,0.00011564,2]
[421736184,1778082640000,-160.0,0.00011564,2]
[421736197,1778082640000,-1384.2316,0.0001178,2]
[421736190,1778082640000,-578.20924308,0.00011583,2]
[421736196,1778082640000,-155.0,0.00011779,2]
[421736200,1778082640000,-500.0,0.0001178,2]
[421736204,1778082640000,-500.0,0.0001178,2]
[421736203,1778082640000,-500.0,0.0001178,2]
[421736198,1778082640000,-151.0,0.0001178,2]
[421736205,1778082640000,-500.0,0.0001178,2]
[421736206,1778082640000,-500.0,0.0001178,2]
[421736202,1778082640000,-500.0,0.0001178,2]
[421736201,1778082640000,-500.0,0.0001178,2]
[421736195,1778082640000,-151.0,0.000117,2]
[421736199,1778082640000,-151.0,0.0001178,2]
[421736208,1778082640000,-500.0,0.0001178,2]
[421736209,1778082640000,-500.0,0.0001178,2]
[421736220,1778082640000,-500.0,0.0001178,2]
[421736193,1778082640000,-823.0,0.00011657,2]
[421736207,1778082640000,-501.03067872,0.0001178,2]
[421736192,1778082640000,-155.0,0.00011642,2]
[421736143,1778082640000,-15016.37,0.00011506,2]
[421736177,1778082640000,-968.53,0.00011506,2]
[421736211,1778082640000,-500.0,0.0001178,2]
[421736144,1778082640000,-1363.48,0.00011506,2]
[421736156,1778082640000,-694.22,0.00011506,2]
[421736148,1778082640000,-1594.25,0.00011506,2]
[421736158,1778082640000,-500.0,0.00011506,2]
[421736163,1778082640000,-500.0,0.00011506,2]
[421736150,1778082640000,-919.28,0.00011506,2]
[421736160,1778082640000,-500.0,0.00011506,2]
[421736146,1778082640000,-500.0,0.00011506,2]
[421736154,1778082640000,-1150.62,0.00011506,2]
[421736162,1778082640000,-1383.64,0.00011506,2]
[421736153,1778082640000,-3031.73,0.00011506,2]
[421736165,1778082640000,-570.37,0.00011506,2]
[421736182,1778082640000,-151.0,0.0001155,2]
[421736166,1778082640000,-843.63,0.00011506,2]
[421736168,1778082640000,-500.0,0.00011506,2]
[421736178,1778082640000,-500.0,0.00011506,2]
[421736180,1778082640000,-151.0,0.0001155,2]
[421736179,1778082640000,-500.0,0.00011506,2]
[421736167,1778082640000,-3404.47,0.00011506,2]
[421736173,1778082640000,-750.5,0.00011506,2]
[421736170,1778082640000,-1792.75,0.00011506,2]
[421736175,1778082640000,-500.0,0.00011506,2]
[421736174,1778082640000,-500.0,0.00011506,2]
[421736169,1778082640000,-3790.81,0.00011506,2]
[421736171,1778082640000,-1014.6,0.00011506,2]
[421736172,1778082640000,-500.0,0.00011506,2]
[421736176,1778082640000,-1784.48,0.00011506,2]
[421736164,1778082640000,-740.88,0.00011506,2]
[421736214,1778082640000,-884.2,0.0001178,2]
[421736215,1778082640000,-500.0,0.0001178,2]
[421736213,1778082640000,-500.0,0.0001178,2]
[421736245,1778082640000,-572.8,0.0001178,2]
[421736242,1778082640000,-1014.29,0.0001178,2]
[421736246,1778082640000,-973.66,0.0001178,2]
[421736247,1778082640000,-2049.64,0.0001178,2]
[421736248,1778082640000,-500.0,0.0001178,2]
[421736254,1778082640000,-500.0,0.0001178,2]
[421736255,1778082640000,-2836.47,0.0001178,2]
[421736262,1778082640000,-500.0,0.0001178,2]
[421736258,1778082640000,-613.1,0.0001178,2]
[421736263,1778082640000,-1594.25,0.0001178,2]
[421736256,1778082640000,-714.55,0.0001178,2]
[421736264,1778082640000,-919.28,0.0001178,2]
[421736265,1778082640000,-3031.73,0.0001178,2]
[421736244,1778082640000,-500.0,0.0001178,2]
[421736266,1778082640000,-1150.62,0.0001178,2]
[421736259,1778082640000,-500.0,0.0001178,2]
[421736261,1778082640000,-1363.48,0.0001178,2]
[421736274,1778082640000,-843.63,0.0001178,2]
[421736271,1778082640000,-500.0,0.0001178,2]
[421736267,1778082640000,-694.22,0.0001178,2]
[421736269,1778082640000,-500.0,0.0001178,2]
[421736273,1778082640000,-570.37,0.0001178,2]
[421736268,1778082640000,-500.0,0.0001178,2]
[421736270,1778082640000,-1383.64,0.0001178,2]
[421736276,1778082640000,-500.0,0.0001178,2]
[421736272,1778082640000,-740.88,0.0001178,2]
[421736275,1778082640000,-3404.47,0.0001178,2]
[421736219,1778082640000,-500.0,0.0001178,2]
[421736260,1778082640000,-15016.37,0.0001178,2]
[421736253,1778082640000,-2547.53,0.0001178,2]
[421736257,1778082640000,-500.0,0.0001178,2]
[421736250,1778082640000,-998.2,0.0001178,2]
[421736212,1778082640000,-500.0,0.0001178,2]
[421736252,1778082640000,-500.0,0.0001178,2]
[421736210,1778082640000,-1145.43,0.0001178,2]
[421736221,1778082640000,-500.0,0.0001178,2]
[421736216,1778082640000,-500.0,0.0001178,2]
[421736218,1778082640000,-500.0,0.0001178,2]
[421736217,1778082640000,-500.0,0.0001178,2]
[421736229,1778082640000,-734.79,0.0001178,2]
[421736232,1778082640000,-500.0,0.0001178,2]
[421736231,1778082640000,-2950.32,0.0001178,2]
[421736222,1778082640000,-500.0,0.0001178,2]
[421736224,1778082640000,-835.86,0.0001178,2]
[421736223,1778082640000,-576.09,0.0001178,2]
[421736226,1778082640000,-928.28,0.0001178,2]
[421736233,1778082640000,-741.62,0.0001178,2]
[421736230,1778082640000,-2145.7,0.0001178,2]
[421736228,1778082640000,-500.0,0.0001178,2]
[421736251,1778082640000,-879.58,0.0001178,2]
[421736243,1778082640000,-500.0,0.0001178,2]
[421736241,1778082640000,-500.0,0.0001178,2]
[421736239,1778082640000,-500.0,0.0001178,2]
[421736240,1778082640000,-905.65,0.0001178,2]
[421736238,1778082640000,-1077.61,0.0001178,2]
[421736249,1778082640000,-777.03,0.0001178,2]
[421736236,1778082640000,-800.73,0.0001178,2]
[421736234,1778082640000,-615.32619366,0.0001178,2]
[421736235,1778082640000,-3067.69,0.0001178,2]
[421736225,1778082640000,-776.1,0.0001178,2]
[421736227,1778082640000,-500.0,0.0001178,2]
[421736237,1778082640000,-500.0,0.0001178,2]
[421736320,1778082641000,-500.0,0.00012054,2]
[421736332,1778082641000,-835.86,0.00012054,2]
[421736331,1778082641000,-576.09,0.00012054,2]
[421736322,1778082641000,-884.2,0.00012054,2]
[421736321,1778082641000,-500.0,0.00012054,2]
[421736315,1778082641000,-500.0,0.00012054,2]
[421736313,1778082641000,-500.0,0.00012054,2]
[421736310,1778082641000,-500.0,0.00012054,2]
[421736314,1778082641000,-500.0,0.00012054,2]
[421736312,1778082641000,-500.0,0.00012054,2]
[421736309,1778082641000,-500.0,0.00012054,2]
[421736316,1778082641000,-500.0,0.00012054,2]
[421736324,1778082641000,-500.0,0.00012054,2]
[421736311,1778082641000,-319.76083508,0.00012054,2]
[421736323,1778082641000,-500.0,0.00012054,2]
[421736343,1778082641000,-500.0,0.00012054,2]
[421736327,1778082641000,-500.0,0.00012054,2]
[421736329,1778082641000,-500.0,0.00012054,2]
[421736326,1778082641000,-500.0,0.00012054,2]
[421736328,1778082641000,-500.0,0.00012054,2]
[421736330,1778082641000,-500.0,0.00012054,2]
[421736344,1778082641000,-1077.61,0.00012054,2]
[421736334,1778082641000,-928.28,0.00012054,2]
[421736346,1778082641000,-905.65,0.00012054,2]
[421736345,1778082641000,-376.71947687,0.00012054,2]
[421736335,1778082641000,-500.0,0.00012054,2]
[421736337,1778082641000,-734.79,0.00012054,2]
[421736341,1778082641000,-3067.69,0.00012054,2]
[421736333,1778082641000,-776.1,0.00012054,2]
[421736308,1778082641000,-1384.2316,0.00012054,2]
[421736325,1778082641000,-500.0,0.00012054,2]
[421736319,1778082641000,-500.0,0.00012054,2]
[421736288,1778082641000,-148584.12268811,0.000118,5]
[421736306,1778082641000,-155.0,0.00012053,2]
[421736277,1778082641000,-3790.81,0.0001178,2]
[421736278,1778082641000,-1792.75,0.0001178,2]
[421736290,1778082641000,-151.0,0.000118,2]
[421736289,1778082641000,-151.0,0.000118,2]
[421736291,1778082641000,-151.0,0.000118,2]
[421736279,1778082641000,-1014.6,0.0001178,2]
[421736292,1778082641000,-151.0,0.000118,2]
[421736283,1778082641000,-500.0,0.0001178,2]
[421736281,1778082641000,-750.5,0.0001178,2]
[421736286,1778082641000,-500.0,0.0001178,2]
[421736285,1778082641000,-968.53,0.0001178,2]
[421736280,1778082641000,-500.0,0.0001178,2]
[421736284,1778082641000,-1784.48,0.0001178,2]
[421736282,1778082641000,-500.0,0.0001178,2]
[421736287,1778082641000,-500.0,0.0001178,2]
[421736298,1778082641000,-3753.03732579,0.00011813,2]
[421736293,1778082641000,-151.0,0.000118,2]
[421736317,1778082641000,-500.0,0.00012054,2]
[421736307,1778082641000,-155.0,0.00012053,2]
[421736303,1778082641000,-171.72166825,0.00011975,2]
[421736301,1778082641000,-155.0,0.00011916,2]
[421736302,1778082641000,-164.0294,0.00011917,2]
[421736304,1778082641000,-151.0,0.00012,2]
[421736318,1778082641000,-1145.43,0.00012054,2]
[421736300,1778082641000,-864.0,0.00011831,2]
[421736342,1778082641000,-800.73,0.00012054,2]
[421736295,1778082641000,-160.0,0.00011813,2]
[421736299,1778082641000,-500.0,0.00011828,2]
[421736305,1778082641000,-155.0,0.00012053,2]
[421736296,1778082641000,-15751.81465,0.00011813,2]
[421736294,1778082641000,-151.0,0.000118,2]
[421736297,1778082641000,-31343.6293,0.00011813,2]
[421736340,1778082641000,-741.62,0.00012054,2]
[421736386,1778082641000,-750.5,0.00012054,2]
[421736336,1778082641000,-500.0,0.00012054,2]